fUSD/lending_fUSD_20251229
["ID","MTS","AMOUNT","RATE_DAILY","PERIOD"]
[400013230,1767018656539,-5003.65041,0.0003,2]
[400013231,1767018656548,-5003.65041,0.0003,2]
[400013232,1767018656558,-5003.65041,0.0003,2]
[400013233,1767018656568,-5003.6504,0.0003,2]
[400013234,1767018656577,-5003.65041,0.0003,2]
[400013235,1767018656587,-422.845317,0.0003,7]
[400013236,1767018656597,-422.845317,0.0003,7]
[400013237,1767018656607,-422.845317,0.0003,7]
[400013238,1767018656618,-422.845325,0.0003,7]
[400013239,1767018656632,-352.483327,0.0003,7]
[400013240,1767018656642,-352.483327,0.0003,7]
[400013241,1767018656651,-352.483327,0.0003,7]
[400013242,1767018656662,-352.483324,0.0003,7]
[400013243,1767018656672,-2031.481272,0.0003,7]
[400013244,1767018656682,-2031.481272,0.0003,7]
[400013245,1767018656692,-2031.481272,0.0003,7]
[400013246,1767018656702,-2031.481271,0.0003,7]
[400013247,1767018656711,-151.0,0.0003,7]
[400013248,1767018656721,-233.423127,0.0003,7]
[400013249,1767018656730,-233.423127,0.0003,7]
[400013250,1767018656739,-7040.59966886,0.0003013,2]
[400013251,1767018656748,-1000.0,0.00030136,30]
[400013252,1767018656758,-482.72,0.00030137,120]
[400013253,1767018656767,-433.6,0.00030137,7]
[400013254,1767018656776,-488.8,0.00030137,6]
[400013255,1767018656785,-403.2,0.00030137,7]
[400013256,1767018656795,-312.8,0.00030137,4]
[400013257,1767018656805,-327.8,0.00030137,5]
[400013258,1767018656815,-303.6,0.00030137,5]
[400013259,1767018656824,-200.0,0.00030137,2]
[400013260,1767018656833,-385.0,0.00030137,7]
[400013261,1767018656842,-200.0,0.00030137,2]
[400013262,1767018656852,-380.2,0.00030137,6]
[400013263,1767018656861,-500.0,0.00030177,7]
[400013264,1767018656871,-912.0,0.00030318,2]
[400013265,1767018656883,-613.0,0.00030318,2]
[400013266,1767018656892,-200.0,0.00030438,2]
[400013267,1767018656902,-200.0,0.00030438,2]
[400013268,1767018656912,-200.0,0.00030743,2]
[400013269,1767018656921,-154.84,0.00030822,2]
[400013270,1767018656930,-5779.7455141,0.0003088,2]
[400013271,1767018656940,-200.0,0.0003105,2]
[400013272,1767018656950,-1000.0,0.000313,2]
[400013273,1767018656959,-154.84,0.00031507,2]
[400013274,1767018656969,-1092.6,0.00031606,2]
[400013275,1767018656980,-222.30051953,0.00031769,7]
[400013276,1767018656990,-347.14482896,0.0003216,2]
[400013277,1767018657000,-154.84,0.00032192,2]
[400013278,1767018657010,-173.12,0.000323,2]
[400013279,1767018657020,-834.28232251,0.0003238,2]
[400013280,1767018657029,-150.62,0.00032534,30]
[400013281,1767018657039,-305.0,0.000327,2]
[400013282,1767018657048,-150.0,0.00032819,2]
[400013283,1767018657058,-169.0017914,0.00032876,120]
[400013284,1767018657068,-151.0,0.00032877,31]
[400013285,1767018657078,-184.712496,0.00032877,31]
[400013286,1767018657087,-500.0,0.00032877,2]
[400013287,1767018657097,-500.0,0.00032877,2]
[400013288,1767018657107,-500.0,0.00032877,2]
[400013289,1767018657117,-331.71267894,0.00032877,2]
[400013290,1767018657128,-500.0,0.00032877,2]
[400013291,1767018657137,-500.0,0.00032877,2]
[400013292,1767018657146,-3751.35,0.000329,2]
[400013293,1767018657155,-2000.0,0.000329,2]
[400013294,1767018657164,-45480.95463875,0.00033,2]
[400013295,1767018657174,-1988.96156541,0.00033,2]
[400013296,1767018657183,-1907.27647102,0.00033,2]
[400013297,1767018657192,-152.85154455,0.00033,2]
[400013298,1767018657202,-443.88,0.00033165,2]
[400013299,1767018657211,-912.0,0.00033318,2]
[400013300,1767018657220,-612.0,0.00033318,2]
[400013301,1767018657229,-179.25,0.000334,14]
[400013302,1767018657239,-173.12,0.000334,2]
[400013303,1767018657249,-152.11205025,0.00033455,2]
[400013304,1767018657258,-5779.7455141,0.00033788,2]
[400013305,1767018657268,-1092.6,0.00033875,3]
[400013306,1767018657278,-3751.35,0.000339,2]
[400013307,1767018657287,-728.24757425,0.00033923,2]
[400013308,1767018657297,-1000.0,0.000342,7]
[400013309,1767018657306,-1000.0,0.000342,7]
[400013310,1767018657316,-173.12,0.000345,2]
[400013311,1767018657326,-150.66288844,0.00035,120]
[400013312,1767018657336,-3751.35,0.000355,2]
[400013313,1767018657347,-1000.0,0.000356,7]
[400013314,1767018657357,-405.39417461,0.00035616,82]
[400013315,1767018657367,-318.0,0.00035616,80]
[400013316,1767018657379,-1000.0,0.000357,7]
[400013317,1767018657390,-150.0,0.00035819,2]
[400013318,1767018657400,-39374.55,0.000359,14]
[400013319,1767018657410,-1092.6,0.00036144,4]
[400013320,1767018657420,-557.821,0.00036318,2]
[400013321,1767018657430,-2000.0,0.000366,2]
[400013322,1767018657440,-6912.92455696,0.00036696,2]
[400013323,1767018657450,-5779.7455141,0.00036696,2]
[400013324,1767018657459,-10000.0,0.00036886,2]
[400013325,1767018657470,-300.0,0.00036887,10]
[400013326,1767018657480,-30579.69685284,0.00036888,60]
[400013327,1767018657490,-150.27828433,0.00036962,7]
[400013328,1767018657500,-150.0,0.00036962,7]
[400013329,1767018657510,-150.0,0.00036962,7]
[400013330,1767018657521,-150.0,0.00036962,7]
[400013331,1767018657531,-150.19136904,0.00036962,7]
[400013332,1767018657542,-150.0,0.00036962,7]
[400013333,1767018657554,-150.0,0.00036962,7]
[400013334,1767018657565,-150.0,0.00036962,7]
[400013335,1767018657574,-151.01100237,0.00036962,7]
[400013336,1767018657583,-150.36861669,0.00036962,7]
[400013337,1767018657593,-151.25761714,0.00036962,7]
[400013338,1767018657603,-192.07228768,0.00036962,7]
[400013339,1767018657613,-150.0,0.00036962,7]
[400013340,1767018657623,-150.0,0.00036962,7]
[400013341,1767018657636,-300.0,0.00036985,10]
[400013342,1767018657646,-151.0,0.00036986,31]
[400013343,1767018657656,-151.0,0.00036986,31]
[400013344,1767018657667,-185.292937,0.00036986,31]
[400013345,1767018657676,-151.0,0.00036986,31]
[400013346,1767018657686,-151.0,0.00036986,31]
[400013347,1767018657695,-238.551246,0.00036986,31]
[400013348,1767018657704,-238.551246,0.00036986,31]
[400013349,1767018657717,-238.551246,0.00036986,31]
[400013350,1767018657726,-238.551246,0.00036986,31]
[400013351,1767018657735,-151.0,0.00036986,31]
[400013352,1767018657746,-151.0,0.00036986,31]
[400013353,1767018657755,-151.0,0.00036986,31]
[400013354,1767018657765,-189.704472,0.00036986,31]
[400013355,1767018657775,-217.18995,0.00036986,31]
[400013356,1767018657785,-151.0,0.00036986,31]
[400013357,1767018657796,-185.220441,0.00036986,31]
[400013358,1767018657806,-168.55207,0.00036986,31]
[400013359,1767018657816,-192.660341,0.00036986,31]
[400013360,1767018657826,-151.0,0.00036986,31]
[400013361,1767018657836,-151.0,0.00036986,31]
[400013362,1767018657846,-151.0,0.00036986,31]
[400013363,1767018657855,-167.193054,0.00036986,31]
[400013364,1767018657865,-151.0,0.00036986,31]
[400013365,1767018657875,-151.0,0.00036986,31]
[400013366,1767018657884,-151.0,0.00036986,31]
[400013367,1767018657894,-151.0,0.00036986,31]
[400013368,1767018657904,-151.0,0.00036986,31]
[400013369,1767018657914,-151.0,0.00036986,31]
[400013370,1767018657923,-151.0,0.00036986,31]
[400013371,1767018657933,-151.0,0.00036986,31]
[400013372,1767018657943,-151.0,0.00036986,31]
[400013373,1767018657953,-151.0,0.00036986,31]
[400013374,1767018657962,-185.189839,0.00036986,31]
[400013375,1767018657970,-151.0,0.00036986,31]
[400013376,1767018657980,-151.000032,0.00036986,31]
[400013377,1767018657990,-174.61801,0.00036986,31]
[400013378,1767018658000,-151.0,0.00036986,31]
[400013379,1767018658010,-209.548282,0.00036986,31]
[400013380,1767018658019,-151.0,0.00036986,31]
[400013381,1767018658029,-151.0,0.00036986,31]
[400013382,1767018658038,-237.536271,0.00036986,31]
[400013383,1767018658047,-151.0,0.00036986,31]
[400013384,1767018658058,-151.0,0.00036986,31]
[400013385,1767018658068,-151.0,0.00036986,31]
[400013386,1767018658077,-151.0,0.00036986,31]
[400013387,1767018658087,-151.0,0.00036986,31]
[400013388,1767018658099,-151.0,0.00036986,31]
[400013389,1767018658109,-151.0,0.00036986,31]
[400013390,1767018658118,-151.0,0.00036986,31]
[400013391,1767018658129,-151.0,0.00036986,31]
[400013392,1767018658139,-234.521209,0.00036986,31]
[400013393,1767018658148,-175.371006,0.00036986,31]
[400013394,1767018658158,-151.0,0.00036986,31]
[400013395,1767018658167,-151.0,0.00036986,31]
[400013396,1767018658177,-287.83837173,0.00036986,31]
[400013397,1767018658192,-151.0,0.00036986,31]
[400013398,1767018658210,-151.0,0.00036986,31]
[400013399,1767018658220,-151.0,0.00036986,31]
[400013400,1767018658230,-151.0,0.00036986,31]
[400013401,1767018658240,-193.501507,0.00036986,31]
[400013402,1767018658250,-151.0,0.00036986,31]
[400013403,1767018658260,-185.312393,0.00036986,31]
[400013404,1767018658270,-235.465203,0.00036986,31]
[400013405,1767018658279,-151.0,0.00036986,31]
[400013406,1767018658289,-151.0,0.00036986,31]
[400013407,1767018658299,-151.0,0.00036986,31]
[400013408,1767018658308,-182.362499,0.00036986,31]
[400013409,1767018658318,-151.0,0.00036986,31]
[400013410,1767018658327,-151.0,0.00036986,31]
[400013411,1767018658336,-151.0,0.00036986,31]
[400013412,1767018658345,-151.0,0.00036986,31]
[400013413,1767018658354,-151.0,0.00036986,31]
[400013414,1767018658365,-151.0,0.00036986,31]
[400013415,1767018658376,-151.0,0.00036986,31]
[400013416,1767018658386,-151.0,0.00036986,31]
[400013417,1767018658396,-151.0,0.00036986,31]
[400013418,1767018658406,-151.0,0.00036986,31]
[400013419,1767018658416,-151.0,0.00036986,31]
[400013420,1767018658426,-184.484541,0.00036986,31]
[400013421,1767018658436,-1443.304395,0.00036986,31]
[400013422,1767018658446,-1443.304395,0.00036986,31]
[400013423,1767018658456,-1443.304395,0.00036986,31]
[400013424,1767018658465,-1443.304395,0.00036986,31]
[400013425,1767018658475,-1443.304395,0.00036986,31]
[400013426,1767018658485,-1443.304395,0.00036986,31]
[400013427,1767018658496,-1443.304395,0.00036986,31]
[400013428,1767018658507,-1443.304395,0.00036986,31]
[400013429,1767018658520,-1443.304395,0.00036986,31]
[400013430,1767018658532,-1443.304395,0.00036986,31]
[400013431,1767018658544,-1443.304395,0.00036986,31]
[400013432,1767018658556,-1443.304395,0.00036986,31]
[400013433,1767018658568,-1443.304395,0.00036986,31]
[400013434,1767018658579,-1443.304395,0.00036986,31]
[400013435,1767018658590,-1443.304395,0.00036986,31]
[400013436,1767018658601,-1443.304395,0.00036986,31]
[400013437,1767018658612,-1443.304395,0.00036986,31]
[400013438,1767018658629,-1443.304395,0.00036986,31]
[400013439,1767018658640,-1443.304395,0.00036986,31]
[400013440,1767018658652,-1443.304386,0.00036986,31]
[400013441,1767018658664,-151.0,0.00036986,31]
[400013442,1767018658675,-154.15747,0.00036986,31]
[400013443,1767018658686,-151.0,0.00036986,31]
[400013444,1767018658697,-151.0,0.00036986,31]
[400013445,1767018658708,-151.0,0.00036986,31]
[400013446,1767018658719,-151.0,0.00036986,31]
[400013447,1767018658730,-151.0,0.00036986,31]
[400013448,1767018658740,-151.0,0.00036986,31]
[400013449,1767018658751,-151.0,0.00036986,31]
[400013450,1767018658763,-151.0,0.00036986,31]
[400013451,1767018658774,-151.0,0.00036986,31]
[400013452,1767018658785,-151.0,0.00036986,31]
[400013453,1767018658796,-151.0,0.00036986,31]
[400013454,1767018658808,-151.0,0.00036986,31]
[400013455,1767018658819,-151.0,0.00036986,31]
[400013456,1767018658830,-151.0,0.00036986,31]
[400013457,1767018658841,-151.0,0.00036986,31]
[400013458,1767018658851,-183.818599,0.00036986,31]
[400013459,1767018658862,-151.0,0.00036986,31]
[400013460,1767018658873,-151.0,0.00036986,31]
[400013461,1767018658885,-151.0,0.00036986,31]
[400013462,1767018658895,-151.0,0.00036986,31]
[400013463,1767018658905,-151.0,0.00036986,31]
[400013464,1767018658916,-151.0,0.00036986,31]
[400013465,1767018658928,-151.0,0.00036986,31]
[400013466,1767018658938,-151.0,0.00036986,31]
[400013467,1767018658950,-151.0,0.00036986,31]
[400013468,1767018658960,-151.0,0.00036986,31]
[400013469,1767018658971,-151.0,0.00036986,31]
[400013470,1767018658982,-151.0,0.00036986,31]
[400013471,1767018658992,-151.0,0.00036986,31]
[400013472,1767018659003,-151.0,0.00036986,31]
[400013473,1767018659014,-151.0,0.00036986,31]
[400013474,1767018659024,-151.0,0.00036986,31]
[400013475,1767018659035,-151.0,0.00036986,31]
[400013476,1767018659046,-151.0,0.00036986,31]
[400013477,1767018659057,-151.0,0.00036986,31]
[400013478,1767018659068,-151.0,0.00036986,31]
[400013479,1767018659079,-151.0,0.00036986,31]
[400013480,1767018659089,-201.818089,0.00036986,31]
[400013481,1767018659100,-167.409401,0.00036986,31]
[400013482,1767018659111,-552.802466,0.00036986,31]
[400013483,1767018659122,-552.802466,0.00036986,31]
[400013484,1767018659134,-552.802466,0.00036986,31]
[400013485,1767018659144,-552.802466,0.00036986,31]
[400013486,1767018659155,-552.802466,0.00036986,31]
[400013487,1767018659166,-552.802466,0.00036986,31]
[400013488,1767018659178,-552.802466,0.00036986,31]
[400013489,1767018659189,-151.0,0.00036986,31]
[400013490,1767018659199,-552.802466,0.00036986,31]
[400013491,1767018659210,-552.802466,0.00036986,31]
[400013492,1767018659220,-151.0,0.00036986,31]
[400013493,1767018659231,-552.802466,0.00036986,31]
[400013494,1767018659243,-151.0,0.00036986,31]
[400013495,1767018659253,-151.0,0.00036986,31]
[400013496,1767018659263,-552.802466,0.00036986,31]
[400013497,1767018659275,-151.0,0.00036986,31]
[400013498,1767018659286,-552.802466,0.00036986,31]
[400013499,1767018659297,-151.0,0.00036986,31]
[400013500,1767018659306,-552.802466,0.00036986,31]
[400013501,1767018659317,-151.0,0.00036986,31]
[400013502,1767018659328,-552.802466,0.00036986,31]
[400013503,1767018659339,-151.0,0.00036986,31]
[400013504,1767018659351,-552.802466,0.00036986,31]
[400013505,1767018659362,-151.0,0.00036986,31]
[400013506,1767018659373,-552.802466,0.00036986,31]
[400013507,1767018659386,-151.0,0.00036986,31]
[400013508,1767018659398,-432.068318,0.00036986,31]
[400013509,1767018659408,-552.802466,0.00036986,31]
[400013510,1767018659419,-151.0,0.00036986,31]
[400013511,1767018659430,-552.802466,0.00036986,31]
[400013512,1767018659441,-186.987581,0.00036986,31]
[400013513,1767018659452,-432.068318,0.00036986,31]
[400013514,1767018659463,-552.802466,0.00036986,31]
[400013515,1767018659473,-432.068318,0.00036986,31]
[400013516,1767018659484,-552.80246,0.00036986,31]
[400013517,1767018659495,-432.068318,0.00036986,31]
[400013518,1767018659504,-432.068318,0.00036986,31]
[400013519,1767018659514,-432.068318,0.00036986,31]
[400013520,1767018659524,-432.068318,0.00036986,31]
[400013521,1767018659533,-432.068318,0.00036986,31]
[400013522,1767018659544,-432.068318,0.00036986,31]
[400013523,1767018659554,-432.068318,0.00036986,31]
[400013524,1767018659563,-432.068318,0.00036986,31]
[400013525,1767018659573,-432.068318,0.00036986,31]
[400013526,1767018659584,-432.068318,0.00036986,31]
[400013527,1767018659595,-432.068318,0.00036986,31]
[400013528,1767018659606,-432.068318,0.00036986,31]
[400013529,1767018659618,-432.068318,0.00036986,31]
[400013530,1767018659631,-432.068318,0.00036986,31]
[400013531,1767018659642,-432.068318,0.00036986,31]
[400013532,1767018659652,-432.068318,0.00036986,31]
[400013533,1767018659662,-432.06832,0.00036986,31]
[400013534,1767018659672,-159.495917,0.00036986,31]
[400013535,1767018659683,-1718.662235,0.00036986,31]
[400013536,1767018659693,-1718.662235,0.00036986,31]
[400013537,1767018659704,-1718.662235,0.00036986,31]
[400013538,1767018659716,-1718.662235,0.00036986,31]
[400013539,1767018659728,-1718.662235,0.00036986,31]
[400013540,1767018659738,-1718.662235,0.00036986,31]
[400013541,1767018659748,-1718.662235,0.00036986,31]
[400013542,1767018659759,-1718.662235,0.00036986,31]
[400013543,1767018659769,-1718.662235,0.00036986,31]
[400013544,1767018659779,-1718.662235,0.00036986,31]
[400013545,1767018659790,-1718.662235,0.00036986,31]
[400013546,1767018659801,-1718.662235,0.00036986,31]
[400013547,1767018659812,-300.0,0.00036999,10]
[400013548,1767018659822,-39374.55,0.00037,14]
[400013549,1767018659832,-151.0,0.00037,31]
[400013550,1767018659842,-151.0,0.00037,31]
[400013551,1767018659852,-151.0,0.00037,31]
[400013552,1767018659862,-238.551246,0.00037,31]
[400013553,1767018659873,-238.551246,0.00037,31]
[400013554,1767018659884,-238.551246,0.00037,31]
[400013555,1767018659893,-238.551246,0.00037,31]
[400013556,1767018659903,-151.0,0.00037,31]
[400013557,1767018659914,-151.0,0.00037,31]
[400013558,1767018659924,-151.0,0.00037,31]
[400013559,1767018659935,-151.0,0.00037,31]
[400013560,1767018659945,-3751.35,0.000371,2]
[400013561,1767018659955,-200.0,0.00037377,2]
[400013562,1767018659965,-200.0,0.00037377,2]
[400013563,1767018659975,-200.0,0.00037377,2]
[400013564,1767018659985,-200.0,0.00037377,2]
[400013565,1767018659994,-200.0,0.00037377,2]
[400013566,1767018660004,-200.0,0.00037377,2]
[400013567,1767018660014,-200.0,0.00037377,2]
[400013568,1767018660024,-200.0,0.00037377,2]
[400013569,1767018660033,-200.0,0.00037377,2]
[400013570,1767018660043,-200.0,0.00037377,2]
[400013571,1767018660053,-200.0,0.00037377,2]
[400013572,1767018660064,-200.0,0.00037377,2]
[400013573,1767018660074,-200.0,0.00037377,2]
[400013574,1767018660084,-200.0,0.00037377,2]
[400013575,1767018660094,-200.0,0.00037377,2]
[400013576,1767018660104,-200.0,0.00037377,2]
[400013577,1767018660114,-200.0,0.00037377,2]
[400013578,1767018660125,-200.0,0.00037377,2]
[400013579,1767018660136,-200.0,0.00037377,2]
[400013580,1767018660146,-200.0,0.00037377,2]
[400013581,1767018660156,-200.0,0.00037377,2]
[400013582,1767018660166,-200.0,0.00037377,2]
[400013583,1767018660176,-200.0,0.00037377,2]
[400013584,1767018660187,-200.0,0.00037377,2]
[400013585,1767018660198,-200.0,0.00037377,2]
[400013586,1767018660208,-200.0,0.00037377,2]
[400013587,1767018660218,-200.0,0.00037377,2]
[400013588,1767018660229,-200.0,0.00037377,2]
[400013589,1767018660239,-200.0,0.00037377,2]
[400013590,1767018660249,-200.0,0.00037377,2]
[400013591,1767018660259,-200.0,0.00037377,2]
[400013592,1767018660269,-200.0,0.00037377,2]
[400013593,1767018660283,-200.0,0.00037377,2]
[400013594,1767018660293,-200.0,0.00037377,2]
[400013595,1767018660303,-200.0,0.00037377,2]
[400013596,1767018660313,-200.0,0.00037377,2]
[400013597,1767018660324,-156.0,0.00037377,2]
[400013598,1767018660334,-834.28232251,0.0003754,2]
[400013599,1767018660345,-236.97,0.000376,14]
[400013600,1767018660356,-150.62,0.00037671,30]
[400013601,1767018660366,-236.97,0.000377,14]
[400013602,1767018660376,-152.0,0.0003771,3]
[400013603,1767018660389,-150.0,0.00037783,7]
[400013604,1767018660399,-39374.55,0.000378,14]
[400013605,1767018660410,-728.24757425,0.00038319,2]
[400013606,1767018660421,-150.0,0.00038331,7]
[400013607,1767018660432,-150.0,0.00038331,7]
[400013608,1767018660443,-650.4,0.00038356,20]
[400013609,1767018660453,-733.2,0.00038356,47]
[400013610,1767018660463,-604.8,0.00038356,34]
[400013611,1767018660474,-469.2,0.00038356,24]
[400013612,1767018660485,-491.7,0.00038356,15]
[400013613,1767018660496,-455.4,0.00038356,43]
[400013614,1767018660506,-577.5,0.00038356,34]
[400013615,1767018660517,-151.0,0.00038356,120]
[400013616,1767018660528,-188.179526,0.00038356,120]
[400013617,1767018660540,-151.0,0.00038356,120]
[400013618,1767018660551,-151.0,0.00038356,120]
[400013619,1767018660562,-151.0,0.00038356,120]
[400013620,1767018660572,-151.0,0.00038356,120]
[400013621,1767018660582,-570.3,0.00038356,25]
[400013622,1767018660593,-13751.4,0.00038356,10]
[400013623,1767018660603,-1092.6,0.00038412,5]
[400013624,1767018660613,-151.0,0.00038538,120]
[400013625,1767018660625,-167.374059,0.00038538,120]
[400013626,1767018660638,-151.0,0.00038538,14]
[400013627,1767018660648,-306.35405335,0.0003854,10]
[400013628,1767018660658,-151.0,0.00038549,2]
[400013629,1767018660669,-151.0,0.00038549,120]
[400013630,1767018660679,-151.0,0.00038549,120]
[400013631,1767018660689,-151.0,0.00038549,120]
[400013632,1767018660699,-151.0,0.00038549,120]
[400013633,1767018660710,-304.3664977,0.00038562,2]
[400013634,1767018660719,-303.58705004,0.00038562,2]
[400013635,1767018660728,-595.39568782,0.00038562,2]
[400013636,1767018660739,-393.80125718,0.00038562,2]
[400013637,1767018660749,-303.20169357,0.00038562,2]
[400013638,1767018660760,-577.5673783,0.00038562,2]
[400013639,1767018660770,-1321.648778,0.00038562,2]
[400013640,1767018660780,-304.3664977,0.00038562,2]
[400013641,1767018660789,-368.11189296,0.00038562,2]
[400013642,1767018660799,-303.58705004,0.00038562,2]
[400013643,1767018660809,-595.39568782,0.00038562,2]
[400013644,1767018660819,-364.18164659,0.00038562,2]
[400013645,1767018660829,-300.0,0.00038562,2]
[400013646,1767018660838,-303.20169357,0.00038562,2]
[400013647,1767018660848,-577.5673783,0.00038562,2]
[400013648,1767018660858,-1321.648778,0.00038562,2]
[400013649,1767018660868,-304.3664977,0.00038562,2]
[400013650,1767018660879,-519.60907308,0.00038562,2]
[400013651,1767018660889,-303.58705004,0.00038562,2]
[400013652,1767018660899,-595.39568782,0.00038562,2]
[400013653,1767018660908,-364.18164659,0.00038562,2]
[400013654,1767018660917,-300.0,0.00038562,2]
[400013655,1767018660927,-303.20169357,0.00038562,2]
[400013656,1767018660937,-577.5673783,0.00038562,2]
[400013657,1767018660946,-1321.648778,0.00038562,2]
[400013658,1767018660956,-304.3664977,0.00038562,2]
[400013659,1767018660966,-303.58705004,0.00038562,2]
[400013660,1767018660976,-595.39568782,0.00038562,2]
[400013661,1767018660986,-364.18164659,0.00038562,2]
[400013662,1767018660996,-303.20169357,0.00038562,2]
[400013663,1767018661007,-577.5673783,0.00038562,2]
[400013664,1767018661017,-1321.648778,0.00038562,2]
[400013665,1767018661026,-304.3664977,0.00038562,2]
[400013666,1767018661036,-484.40337287,0.00038562,2]
[400013667,1767018661047,-595.39568782,0.00038562,2]
[400013668,1767018661057,-364.18164659,0.00038562,2]
[400013669,1767018661068,-303.20169357,0.00038562,2]
[400013670,1767018661077,-577.5673783,0.00038562,2]
[400013671,1767018661087,-1321.648778,0.00038562,2]
[400013672,1767018661097,-304.3664977,0.00038562,2]
[400013673,1767018661107,-595.39568782,0.00038562,2]
[400013674,1767018661118,-364.18164659,0.00038562,2]
[400013675,1767018661129,-421.17005081,0.00038562,2]
[400013676,1767018661139,-577.5673783,0.00038562,2]
[400013677,1767018661149,-1321.648778,0.00038562,2]
[400013678,1767018661159,-304.3664977,0.00038562,2]
[400013679,1767018661169,-595.39568782,0.00038562,2]
[400013680,1767018661182,-364.18164659,0.00038562,2]
[400013681,1767018661192,-577.5673783,0.00038562,2]
[400013682,1767018661203,-1321.648778,0.00038562,2]
[400013683,1767018661213,-416.81873309,0.00038562,2]
[400013684,1767018661222,-595.39568782,0.00038562,2]
[400013685,1767018661231,-364.18164659,0.00038562,2]
[400013686,1767018661242,-577.5673783,0.00038562,2]
[400013687,1767018661252,-1321.648778,0.00038562,2]
[400013688,1767018661262,-150.0,0.00038604,7]
[400013689,1767018661272,-554.77,0.00038849,2]
[400013690,1767018661282,-554.77,0.00038849,2]
[400013691,1767018661292,-554.77,0.00038849,2]
[400013692,1767018661303,-554.77,0.00038849,2]
[400013693,1767018661313,-8321.04,0.00038904,2]
[400013694,1767018661323,-2064.72973751,0.00038948,3]
[400013695,1767018661333,-481.65,0.00038959,2]
[400013696,1767018661343,-481.65,0.00038959,2]
[400013697,1767018661354,-480.96,0.00038959,2]
[400013698,1767018661364,-481.65,0.00038959,2]
[400013699,1767018661374,-481.65,0.00038959,2]
[400013700,1767018661387,-481.65,0.00038959,2]
[400013701,1767018661398,-481.65,0.00038959,2]
[400013702,1767018661409,-481.65,0.00038959,2]
[400013703,1767018661419,-481.65,0.00038959,2]
[400013704,1767018661428,-481.65,0.00038959,2]
[400013705,1767018661439,-481.65,0.00038959,2]
[400013706,1767018661449,-481.65,0.00038959,2]
[400013707,1767018661460,-660.04,0.00038986,2]
[400013708,1767018661471,-660.04,0.00038986,2]
[400013709,1767018661482,-658.74,0.00038986,2]
[400013710,1767018661492,-39374.55,0.00039,14]
[400013711,1767018661503,-150.0,0.00039015,7]
[400013712,1767018661513,-150.0,0.00039015,7]
[400013713,1767018661523,-236.97,0.000391,14]
[400013714,1767018661534,-150.0,0.00039426,7]
[400013715,1767018661544,-636.394,0.00039432,54]
[400013716,1767018661554,-158.05,0.00039534,2]
[400013717,1767018661564,-178.66,0.00039534,2]
[400013718,1767018661574,-1240.09,0.00039534,2]
[400013719,1767018661585,-170.94,0.00039534,2]
[400013720,1767018661594,-150.77,0.00039534,2]
[400013721,1767018661605,-150.0,0.00039534,2]
[400013722,1767018661615,-298.75,0.00039534,2]
[400013723,1767018661629,-150.0,0.00039534,2]
[400013724,1767018661928,-178.66,0.00039534,2]
[400013725,1767018661939,-1221.52,0.00039534,2]
[400013726,1767018661949,-170.94,0.00039534,2]
[400013727,1767018661959,-150.0,0.00039534,2]
[400013728,1767018661969,-150.0,0.00039534,2]
[400013729,1767018661979,-1221.52,0.00039534,2]